[Event "1st Serbian League 2022"]
[Site "Vrnjacka Banja"]
[Date "2022.09.22"]
[Round "3.30"]
[White "Todorovic, Goran N"]
[Black "Radivojevic, Milan R"]
[Result "1-0"]
[ECO "A11"]
[WhiteElo "2305"]
[BlackElo "2172"]
[Annotator "TA"]
[PlyCount "91"]
[EventDate "2022.09.20"]
[EventType "team-tourn"]
[EventCountry "SRB"]
[SourceTitle "playchess.com"]
[Source "ChessBase"]
[SourceQuality "1"]
[TimeControl "40/5400+30:1800+30"]

{[%evp 14,91,22,17,14,25,24,19,17,11,50,33,38,18,26,22,54,52,69,68,71,23,23,23,23,23,14,0,0,-11,0,0,0,-6,-15,-12,0,0,0,-12,0,2,46,46,46,46,46,46,46,38,38,38,46,0,46,46,46,46,97,46,100,92,100,63,100,100,252,227,224,216,185,97,5139,4929,1873,1714,1227,1208,1182,1172]} 1. Nf3 {[%emt 0:00:07]} d5 {[%emt 0:00:05]} 2. c4 {[%emt 0:00:09]} c6 {[%emt 0:00:11]} 3. g3 {[%emt 0:00:09]} Nf6 {[%emt 0:00:11]} 4. Bg2 {[%emt 0:00:05]} Bf5 {[%emt 0:01:02]} 5. cxd5 {[%emt 0:00:10]} cxd5 {[%emt 0:00:37]} 6. Qb3 {[%emt 0:00:12]} Qb6 {[%emt 0:05:35]} 7. Qxb6 {[%emt 0:00:38]} axb6 {[%emt 0:00:02]} 8. Nc3 {[%emt 0:00:16]} Bd7 {[%emt 0:01:01] A11: English Opening: 1...c6.} 9. d3 {[%emt 0:02:39]} e6 {[%emt 0:01:20]} 10. O-O {[%emt 0:00:33]} Bc5 {[%emt 0:12:18] The position is equal.} 11. a3 {[%emt 0:04:47] [#]} d4 $146 {[%emt 0:09:01]} ({Predecessor:} 11... O-O 12. Bf4 Rc8 13. e4 Nc6 14. exd5 Nxd5 15. Nxd5 exd5 16. Rfe1 h6 17. Rad1 Be6 {½-½ (42) Giri,A (2717)-Burmakin,V (2592) Sochi 2012}) 12. Na2 {[%emt 0:04:22]} Nc6 {[%emt 0:05:14]} 13. Bf4 {[%emt 0:28:46][%cal Oa2b4]} Nd5 {[%emt 0:06:22] Inhibits Nb4.} 14. Bd2 {[%emt 0:11:24]} Be7 {[%emt 0:12:54]} 15. Nb4 {[%emt 0:05:05]} Bf6 {[%emt 0:16:09]} 16. Nxd5 {[%emt 0:02:05]} exd5 {[%emt 0:00:02]} 17. Bg5 {[%emt 0:16:46]} (17. Ng5 $16) 17... Bxg5 $11 {[%emt 0:02:10]} 18. Nxg5 {[%emt 0:00:06]} f6 {[%emt 0:04:08]} 19. Nf3 {[%emt 0:00:28]} Ke7 {[%emt 0:05:37]} 20. Rfc1 {[%emt 0:01:51]} Kd6 {[%emt 0:00:40]} 21. Kf1 {[%emt 0:01:38]} Rhc8 {[%emt 0:04:25]} 22. h3 {[%emt 0:08:14]} g5 {[%emt 0:05:01]} 23. Rc2 {[%emt 0:02:33]} h5 {[%emt 0:00:24]} 24. Rac1 {[%emt 0:01:10]} g4 {[%emt 0:00:08]} 25. hxg4 {[%emt 0:01:10]} hxg4 {[%emt 0:00:02]} 26. Nh4 {[%emt 0:00:10]} Ne7 {[%emt 0:01:56] Inhibits Ng6.} 27. Rxc8 {[%emt 0:00:19]} Rxc8 {[%emt 0:00:01]} 28. Rxc8 {[%emt 0:00:11]} Bxc8 {[%emt 0:00:50][%mdl 4096] Endgame KBN-KBN} 29. Ke1 {[%emt 0:00:10]} Bd7 {[%emt 0:02:33]} 30. Kd2 {[%emt 0:00:23]} Ke5 {[%emt 0:02:22]} 31. Bh1 {[%emt 0:04:27]} f5 {[%emt 0:01:09]} 32. f4+ {[%emt 0:03:06]} Kd6 {[%emt 0:00:45]} 33. Ng2 {[%emt 0:00:46]} (33. b3 $1 $14) 33... Be6 {[%emt 0:02:13]} (33... Ba4 $11) 34. Ne1 $14 {[%emt 0:00:45]} Nc6 {[%emt 0:00:30]} 35. Nc2 {[%emt 0:00:17]} Kc5 {[%emt 0:00:26]} (35... b5 $14) 36. Bg2 {[%emt 0:00:46]} (36. b4+ $1 $16 Kb5 37. e3) 36... Bf7 {[%emt 0:00:30] [#]} ({Better is} 36... b5 $14) 37. b4+ $1 $16 {[%emt 0:01:17]} Kb5 {[%emt 0:00:22]} 38. Kc1 {[%emt 0:00:40]} Ka4 {[%emt 0:00:39]} 39. Kb2 {[%emt 0:00:09]} Be6 $2 {[%emt 0:00:21]} (39... Bg8 $16 {is a better defense.}) 40. Bf1 {[%emt 0:01:03]} Bf7 {[%emt 0:00:32]} 41. e3 {[%emt 0:03:44]} Be6 {[%emt 0:09:55]} 42. Be2 {[%emt 0:00:43]} ({Don't do} 42. exd4 Kb5 43. Kb3 Ka6 $16) ({Resist} 42. Nxd4 $6 Nxd4 43. exd4 Kb5 $16) ({White should try} 42. e4 $18) 42... dxe3 $2 {[%emt 0:16:53][%mdl 8192] [#]} (42... Kb5 $16) 43. d4 $1 $18 {[%emt 0:06:26] White is clearly winning.} Bf7 {[%emt 0:00:28]} 44. Bd3 {[%emt 0:01:11]} Be6 {[%emt 0:00:01]} 45. Nxe3 {[%emt 0:01:19] Nd1 is the strong threat.} Nxd4 {[%emt 0:00:22]} 46. Nd1 {[%emt 0:00:15] Weighted Error Value: White=0.11 (very precise) /Black=0.17 (very precise)} 1-0

[Event "1st Serbian League 2022"]
[Site "Vrnjacka Banja"]
[Date "2022.09.22"]
[Round "3.31"]
[White "Sanal, Vahap"]
[Black "Krstulovic, Alex"]
[Result "1-0"]
[ECO "D02"]
[WhiteElo "2595"]
[BlackElo "2411"]
[Annotator "TA"]
[PlyCount "95"]
[EventDate "2022.09.20"]
[EventType "team-tourn"]
[EventCountry "SRB"]
[SourceTitle "playchess.com"]
[Source "ChessBase"]
[SourceQuality "1"]
[TimeControl "40/5400+30:1800+30"]

{[%evp 11,95,24,32,10,12,12,6,0,0,12,7,0,2,0,2,11,31,31,28,20,46,-4,10,0,0,0,0,-26,-29,-44,-17,-37,0,-3,20,-22,-32,-30,-22,-24,-14,-49,-4,-18,0,0,0,0,45,0,52,71,121,124,148,145,366,366,366,366,309,170,350,155,150,111,111,111,111,104,148,148,136,139,146,81,166,151,240,227,540,512,691,656,29988,29989]} 1. Nf3 {[%emt 0:01:45]} d5 {[%emt 0:00:56]} 2. g3 {[%emt 0:00:08]} Nc6 {[%emt 0:00:39]} 3. d4 {[%emt 0:00:07]} Bf5 {[%emt 0:00:05]} 4. Bg2 {[%emt 0:00:09]} Nb4 {[%emt 0:00:06]} 5. Na3 {[%emt 0:00:06]} e6 {[%emt 0:00:07]} 6. O-O {[%emt 0:01:03]} Be7 {[%emt 0:00:42]} 7. c3 {[%emt 0:01:08] D02: 1 d4 d5 2 Nf3 sidelines, including 2...Nf6 3 g3 and 2...Nf6 3 Bf4.} Nc6 {[%emt 0:00:07]} 8. Qb3 {[%emt 0:00:47]} Rb8 {[%emt 0:00:15]} 9. Ne5 {[%emt 0:01:02] The position is equal.} Nf6 {[%emt 0:01:53]} 10. Qa4 {[%emt 0:05:21]} O-O {[%emt 0:00:33]} 11. Nxc6 {[%emt 0:00:44]} bxc6 {[%emt 0:00:07]} 12. Qxc6 {[%emt 0:01:21]} Qc8 {[%emt 0:04:17]} 13. Qa4 {[%emt 0:01:47]} c5 {[%emt 0:33:22]} 14. Qxa7 {[%emt 0:09:17] [#]} Nd7 $146 {[%emt 0:02:05] ...Ra8 is the strong threat.} ({Predecessor:} 14... Re8 15. Qa4 cxd4 16. cxd4 Rb4 17. Qd1 h5 18. Nb1 h4 19. Nc3 h3 20. Bf3 Qa6 {1-0 (40) Walker,J (2071)-Herzog,K (2023) LSS email 2009}) 15. Qa4 {[%emt 0:01:25]} cxd4 {[%emt 0:15:09]} 16. Qxd4 {[%emt 0:04:22]} (16. cxd4 $14 h6 17. Qd1) 16... Bc5 {[%emt 0:05:06]} 17. Qd2 {[%emt 0:03:18]} Bxa3 {[%emt 0:05:20]} 18. bxa3 {[%emt 0:00:10]} Ne5 {[%emt 0:02:23]} 19. Qd4 {[%emt 0:08:37]} Nc4 {[%emt 0:01:58][%mdl 1024] Black has compensation.} 20. h3 {[%emt 0:00:31]} Rd8 {[%emt 0:02:02]} 21. Qh4 {[%emt 0:09:27]} Ne5 {[%emt 0:15:32]} 22. g4 {[%emt 0:06:05]} Be4 {[%emt 0:02:58]} 23. f3 {[%emt 0:01:03]} Bc2 {[%emt 0:02:58]} ({Don't do} 23... Qxc3 24. Bg5 (24. Bf4 Ng6 $17) 24... Ng6 25. Qe1 (25. Qf2 f6 $14) 25... Qc5+ 26. Qf2 Qxf2+ 27. Rxf2 $16 (27. Kxf2 f6 $14)) 24. Qg3 {[%emt 0:11:48]} Qc5+ {[%emt 0:00:52]} 25. Kh1 {[%emt 0:00:41]} Nc4 {[%emt 0:00:38]} 26. h4 {[%emt 0:00:49]} Nxa3 {[%emt 0:01:49]} 27. Bf4 {[%emt 0:01:52]} Rbc8 {[%emt 0:00:54]} 28. Be5 {[%emt 0:02:03]} Qc4 {[%emt 0:00:56]} 29. g5 {[%emt 0:10:11] Inhibits f6.} Qxe2 {[%emt 0:00:33]} 30. Rae1 {[%emt 0:01:52]} Qd3 {[%emt 0:00:19]} (30... Qd2 $11) 31. h5 $1 $14 {[%emt 0:00:05]} Nc4 {[%emt 0:00:45]} (31... d4 $142) 32. Bd4 $1 $16 {[%emt 0:00:27] Hoping for Rg1.} Re8 {[%emt 0:00:30]} 33. Rf2 {[%emt 0:00:38] Inhibits Qd2.} Ba4 $2 {[%emt 0:00:32]} (33... Rcd8 $16) 34. Bf1 $18 {[%emt 0:04:32]} Qf5 {[%emt 0:00:00]} 35. Bh3 $1 {[%emt 0:02:05] This bishop pair is nice.} Qd3 {[%emt 0:00:01]} 36. Kh2 {[%emt 0:00:07]} (36. g6 $142 {Intending gxf7+ and mate.} hxg6 37. hxg6 Qxg6 38. Qxg6 fxg6 39. Bxe6+ Kf8 40. Rh2) 36... Rb8 $2 {[%emt 0:01:29]} (36... Bd7 37. h6 Rcd8) 37. Bf1 {[%emt 0:02:19]} (37. g6 $18 {Threatening mate with gxf7+.} hxg6 38. hxg6 Qxg6 39. Qxg6 fxg6 40. Bxe6+ Rxe6 41. Rxe6) 37... Qf5 $16 {[%emt 0:00:02]} 38. Bxc4 {[%emt 0:00:29]} dxc4 {[%emt 0:00:03] [#]} 39. Re5 $1 {[%emt 0:00:11]} Qb1 {[%emt 0:00:54]} 40. h6 $40 {[%emt 0:02:51][%mdl 128] White wants a kill.} Rb2 {[%emt 0:01:00] [#]} 41. Ree2 $1 {[%emt 0:36:26]} Rxe2 {[%emt 0:03:14]} 42. Rxe2 {[%emt 0:00:00]} e5 {[%emt 0:02:36] Inhibits Qf4.} 43. Bxe5 {[%emt 0:00:00]} (43. Rxe5 $142 Qxa2+ 44. Kh3 Bd7+ 45. Kh4) 43... Qd3 {[%emt 0:06:32]} (43... Qf5 $16 {was necessary.}) 44. Rf2 $18 {[%emt 0:00:00]} f6 {[%emt 0:12:51]} (44... g6 $16 {was called for.} 45. Qf4 Qd5) 45. gxf6 {[%emt 0:00:00][%csl Ge5,Gf6,Gh6][%cal Rg3g7]} g6 {[%emt 0:02:06]} (45... Qg6 {is tougher.} 46. f7+ (46. fxg7 Qh5+ 47. Kg1 Rxe5 $17) 46... Qxf7) 46. Qf4 {[%emt 0:00:00] White threatens f7+ and mate.} Kf7 {[%emt 0:03:01]} 47. Rd2 {[%emt 0:00:00]} Qf1 {[%emt 0:00:04]} 48. Qe4 {[%emt 0:00:00] Weighted Error Value: White=0.19 (very precise) /Black=0.54} 1-0

[Event "1st Serbian League 2022"]
[Site "Vrnjacka Banja"]
[Date "2022.09.22"]
[Round "3.32"]
[White "Sedlak, Nikola"]
[Black "Gurel, Ediz"]
[Result "1/2-1/2"]
[ECO "A30"]
[WhiteElo "2466"]
[BlackElo "2437"]
[Annotator "TA"]
[PlyCount "67"]
[EventDate "2022.09.20"]
[EventType "team-tourn"]
[EventCountry "SRB"]
[SourceTitle "playchess.com"]
[Source "ChessBase"]
[SourceQuality "1"]
[TimeControl "40/5400+30:1800+30"]

{[%evp 15,67,11,11,13,15,0,0,-4,10,0,0,0,0,0,0,0,15,-17,-10,-29,-22,-36,0,0,0,-67,-75,-62,-62,-66,0,0,0,0,12,7,7,0,21,36,14,0,0,0,0,0,0,0,0,0,0,0,0,0]} 1. Nf3 {[%emt 0:00:22]} d5 {[%emt 0:00:17]} 2. g3 {[%emt 0:00:23]} Nf6 {[%emt 0:00:10]} 3. Bg2 {[%emt 0:00:14]} c5 {[%emt 0:00:05]} 4. O-O {[%emt 0:00:49]} g6 {[%emt 0:00:03]} 5. b3 {[%emt 0:03:07]} Bg7 {[%emt 0:00:50]} 6. Bb2 {[%emt 0:00:08]} O-O {[%emt 0:02:33]} 7. e3 {[%emt 0:04:33]} b6 {[%emt 0:06:05]} 8. c4 {[%emt 0:00:52]} Bb7 {[%emt 0:08:49]} 9. cxd5 {[%emt 0:00:26] [#] A30: Symmetrical English: Double Fianchetto and Hedgehog.} Nbd7 $146 {[%emt 0:01:40]} ({Predecessor:} 9... Bxd5 10. Nc3 Bb7 11. d4 cxd4 12. Nxd4 Bxg2 13. Kxg2 Na6 14. Qf3 Rc8 15. Rfd1 e5 16. Ne6 fxe6 17. Rxd8 Rcxd8 18. Rd1 Nd5 19. Qg4 Nc5 20. b4 Nf6 21. Qc4 {1-0 (21) Artemiev,V (2709)-Karthikeyan,M (2606) Chess.com INT 2021}) 10. d4 {[%emt 0:01:50]} Nxd5 {[%emt 0:02:45]} 11. Qe2 {[%emt 0:03:40]} e6 {[%emt 0:09:15]} 12. Rd1 {[%emt 0:00:30]} Qe7 {[%emt 0:00:17]} 13. Na3 {[%emt 0:01:56]} Rfd8 {[%emt 0:03:12]} 14. Nc4 {[%emt 0:02:13]} Rac8 {[%emt 0:04:15]} 15. Rac1 {[%emt 0:08:27]} Ba6 {[%emt 0:02:53]} 16. h4 {[%emt 0:06:26]} cxd4 {[%emt 0:10:46]} 17. Nxd4 {[%emt 0:02:12]} Ne5 {[%emt 0:00:33]} 18. h5 {[%emt 0:07:51]} Nxc4 {[%emt 0:04:37]} 19. bxc4 {[%emt 0:00:08]} Qb4 {[%emt 0:01:48][%cal Ra6c4]} 20. hxg6 {[%emt 0:11:57]} (20. a3 $1 $11 Bxc4 21. axb4 Bxe2 22. Rxc8 Rxc8 23. Nxe2 Bxb2 24. Bxd5 exd5 25. hxg6) 20... hxg6 $15 {[%emt 0:00:29]} 21. a3 {[%emt 0:01:25]} Qa4 {[%emt 0:18:34][%cal Ra6c4]} 22. Nc6 {[%emt 0:08:18]} Bxb2 {[%emt 0:06:40]} ({Of course not} 22... Qxc6 23. Bxg7 Kxg7 24. Qb2+ Kg8 25. cxd5 $11) (22... Rxc6 $15 23. Bxg7 Rxc4) 23. Qxb2 $11 {[%emt 0:00:19]} Rxc6 {[%emt 0:00:06]} 24. cxd5 {[%emt 0:00:24]} Rxc1 {[%emt 0:00:20]} 25. Qxc1 {[%emt 0:04:17]} exd5 {[%emt 0:07:10]} 26. Bxd5 {[%emt 0:00:47]} Kg7 {[%emt 0:00:13]} 27. Rd4 {[%emt 0:01:21]} Qa5 {[%emt 0:00:16]} 28. Qa1 {[%emt 0:11:22] [#] White wants to mate with Rf4+. The position is equal.} f6 {[%emt 0:01:23]} 29. Bg2 {[%emt 0:07:47]} Rxd4 {[%emt 0:00:24]} 30. Qxd4 {[%emt 0:00:07] Strongly threatening Qd7+.} Qe1+ {[%emt 0:00:31]} 31. Kh2 {[%emt 0:00:07] Black must now prevent Qd7+.} Qxf2 {[%emt 0:00:04]} 32. Qd7+ {[%emt 0:00:05]} Kh6 {[%emt 0:00:02]} 33. Qh3+ {[%emt 0:00:07]} Kg7 {[%emt 0:00:02] [#] And now ...Qd2 would win.} 34. Qd7+ {[%emt 0:00:40] Weighted Error Value: White=0.10 (very precise) /Black=0.09 (flawless)} 1/2-1/2

[Event "1st Serbian League 2022"]
[Site "Vrnjacka Banja"]
[Date "2022.09.22"]
[Round "3.33"]
[White "Markus, Robert"]
[Black "Popovic, Dusan"]
[Result "1/2-1/2"]
[ECO "E62"]
[WhiteElo "2615"]
[BlackElo "2486"]
[Annotator "TA"]
[PlyCount "38"]
[EventDate "2022.09.20"]
[EventType "team-tourn"]
[EventCountry "SRB"]
[SourceTitle "playchess.com"]
[Source "ChessBase"]
[SourceQuality "1"]
[TimeControl "40/5400+30:1800+30"]

{[%evp 19,21,33,45,10]} 1. d4 {[%emt 0:00:03]} d6 {[%emt 0:00:07]} 2. Nf3 {[%emt 0:00:09]} Nf6 {[%emt 0:00:06]} 3. g3 {[%emt 0:00:04]} g6 {[%emt 0:00:06]} 4. Bg2 {[%emt 0:00:04]} Bg7 {[%emt 0:00:04]} 5. O-O {[%emt 0:00:05]} O-O {[%emt 0:00:03]} 6. c4 {[%emt 0:00:04]} Nc6 {[%emt 0:00:05]} 7. Nc3 {[%emt 0:00:04]} Bg4 {[%emt 0:00:05]} 8. d5 {[%emt 0:00:09]} Na5 {[%emt 0:00:03]} 9. Nd2 {[%emt 0:00:05]} c5 {[%emt 0:00:05]} 10. Qc2 {[%emt 0:00:06]} a6 {[%emt 0:00:05][%cal Ob7b5]} 11. b3 {[%emt 0:00:09] [#] An uneventful encounter. E66: King's Indian: Fianchetto: 6...c5 7 0-0 Nc6 8 d5.} {Predecessor:} b5 $146 12. h3 b4 13. hxg4 bxc3 14. Ne4 Nxg4 15. Nxc3 h5 16. Bd2 Nb7 17. Rae1 h4 18. gxh4 e5 19. Bg5 Bf6 {1-0 (75) Le,T (2514)-Das,S (2431) Chess.com INT 2021} 1/2-1/2

[Event "1st Serbian League 2022"]
[Site "Vrnjacka Banja"]
[Date "2022.09.22"]
[Round "3.34"]
[White "Boskovic, Drasko"]
[Black "Solak, Dragan"]
[Result "1/2-1/2"]
[ECO "D02"]
[WhiteElo "2415"]
[BlackElo "2592"]
[Annotator "TA"]
[PlyCount "120"]
[EventDate "2022.09.20"]
[EventType "team-tourn"]
[EventCountry "SRB"]
[SourceTitle "playchess.com"]
[Source "ChessBase"]
[SourceQuality "1"]
[TimeControl "40/5400+30:1800+30"]

{[%evp 9,120,27,33,24,20,27,31,17,25,12,21,25,23,28,27,25,27,24,42,1,0,-37,-11,-6,0,-16,-12,-10,-15,-8,0,0,0,0,0,0,6,6,6,9,6,6,4,0,0,2,2,0,0,0,0,0,0,0,0,0,0,0,0,0,0,0,0,0,0,0,0,0,0,0,0,-7,0,-7,-7,-7,-7,-7,-7,-7,-7,-7,-7,-7,-7,-7,-7,-7,-7,-7,-7,-7,-7,-7,-7,-7,-7,-7,-7,-7,-7,-7,-7,-7,-7,-7,-7,-7,-7,-7,-7,-7,-7]} 1. d4 {[%emt 0:00:06]} d5 {[%emt 0:00:25]} 2. Nf3 {[%emt 0:00:05]} c6 {[%emt 0:11:04]} 3. Bf4 {[%emt 0:00:51]} Bg4 {[%emt 0:03:35]} 4. e3 {[%emt 0:04:22]} e6 {[%emt 0:01:24]} 5. c4 {[%emt 0:01:50]} Bd6 {[%emt 0:10:24]} 6. Bxd6 {[%emt 0:30:05] D02: 1 d4 d5 2 Nf3 sidelines, including 2...Nf6 3 g3 and 2...Nf6 3 Bf4.} Qxd6 {[%emt 0:00:29] [#]} 7. Qb3 $146 {[%emt 0:02:46]} ({Predecessor:} 7. Nc3 Nf6 8. Be2 O-O 9. c5 Qc7 10. Ne5 Bxe2 11. Qxe2 Nbd7 12. f4 b6 13. cxb6 Qxb6 {1-0 (41) Cehelsky,C (1950)-Majlath,Z (1994) Slovakia 2014}) 7... Qc7 {[%emt 0:04:27]} 8. Ne5 {[%emt 0:00:14] White is slightly better.} Nf6 {[%emt 0:04:15]} 9. Bd3 {[%emt 0:07:04]} Nbd7 {[%emt 0:03:21]} (9... dxc4 {is interesting.} 10. Qxc4 Nbd7 11. h3 Bh5) 10. Nxg4 {[%emt 0:05:52]} Nxg4 {[%emt 0:00:09]} 11. Nc3 {[%emt 0:02:43]} Ngf6 {[%emt 0:07:03]} 12. cxd5 {[%emt 0:02:38]} exd5 {[%emt 0:02:33]} 13. Rc1 {[%emt 0:02:34][%cal Oc3d5]} Nb6 {[%emt 0:19:55]} 14. g4 {[%emt 0:03:14]} Qe7 {[%emt 0:05:25]} 15. g5 {[%emt 0:11:40]} Nfd7 {[%emt 0:00:14]} 16. h4 {[%emt 0:03:10] The position is equal.} h6 {[%emt 0:03:12]} 17. Kd2 {[%emt 0:04:05]} hxg5 {[%emt 0:04:02]} 18. hxg5 {[%emt 0:00:07]} Rxh1 {[%emt 0:00:18]} 19. Rxh1 {[%emt 0:00:04]} Qxg5 {[%emt 0:00:45]} 20. Rh8+ {[%emt 0:03:52]} Nf8 $1 {[%emt 0:00:08]} 21. Na4 $1 {[%emt 0:01:33]} Qe7 {[%emt 0:13:34]} 22. Nc5 {[%emt 0:00:16]} O-O-O {[%emt 0:02:05][%cal Ob6c4,Be8c8,Bc8d8,Bd8c7,Bc7d7,Bd7e7][%mdl 32]} 23. Qa3 {[%emt 0:02:27]} Ne6 {[%emt 0:02:09]} 24. Nxe6 {[%emt 0:07:09]} Qxe6 {[%emt 0:00:02]} 25. Rxd8+ {[%emt 0:00:06]} Kxd8 $11 {[%emt 0:00:03][%mdl 4096] Endgame KQB-KQN} 26. Qf8+ {[%emt 0:00:08]} Kc7 {[%emt 0:00:47]} 27. Qxg7 {[%emt 0:00:03]} Nc8 {[%emt 0:01:11]} 28. f4 {[%emt 0:01:30]} Nd6 {[%emt 0:00:16]} 29. Qe5 {[%emt 0:00:10]} Kd7 {[%emt 0:00:48]} 30. b3 {[%emt 0:01:24]} Qe7 {[%emt 0:00:33]} 31. Kc3 {[%emt 0:00:47]} f6 {[%emt 0:00:19]} 32. Qxe7+ {[%emt 0:00:17]} Kxe7 {[%emt 0:00:02] KB-KN} 33. a4 {[%emt 0:00:12]} b6 {[%emt 0:01:15]} 34. b4 {[%emt 0:00:43]} a5 {[%emt 0:00:16]} 35. bxa5 {[%emt 0:00:59]} bxa5 {[%emt 0:00:02]} 36. Ba6 {[%emt 0:01:01]} Kd7 {[%emt 0:00:19]} 37. Bd3 {[%emt 0:00:16]} Kc7 {[%emt 0:00:09]} 38. Kd2 {[%emt 0:01:34]} Kb6 {[%emt 0:00:20]} 39. Ke2 {[%emt 0:00:25]} c5 {[%emt 0:00:14]} 40. Kf3 {[%emt 0:00:08]} c4 {[%emt 0:01:57]} 41. Bc2 {[%emt 0:30:09]} f5 {[%emt 0:12:32]} 42. Ke2 {[%emt 0:00:00]} Kc7 {[%emt 0:01:25]} 43. Kd2 {[%emt 0:00:00]} Kd7 {[%emt 0:00:05]} 44. Bd1 {[%emt 0:00:00]} Ne4+ {[%emt 0:00:31]} 45. Kc2 {[%emt 0:00:00]} Ke6 {[%emt 0:00:12]} 46. Bf3 {[%emt 0:00:00]} Nf2 {[%emt 0:00:05]} 47. Bg2 {[%emt 0:00:00]} Ng4 {[%emt 0:01:45]} 48. Kd2 {[%emt 0:00:00]} Nf6 {[%emt 0:00:17]} 49. Bf3 {[%emt 0:00:00]} Kd6 {[%emt 0:00:24]} 50. Kc3 {[%emt 0:00:00]} Nd7 {[%emt 0:00:08]} 51. Bd1 {[%emt 0:00:00]} Ke7 {[%emt 0:00:11]} 52. Bc2 {[%emt 0:00:00]} Kf6 {[%emt 0:01:20]} 53. Bd1 {[%emt 0:00:00]} Nb6 {[%emt 0:00:13]} 54. Bc2 {[%emt 0:00:00]} Nc8 {[%emt 0:00:10]} 55. Bd1 {[%emt 0:00:00]} Nd6 {[%emt 0:00:05]} 56. Bf3 {[%emt 0:00:00]} Ke6 {[%emt 0:00:14]} 57. Kc2 {[%emt 0:00:00]} Ne8 {[%emt 0:00:14]} 58. Kd2 {[%emt 0:00:00]} Nf6 {[%emt 0:00:05]} 59. Bg2 {[%emt 0:00:00]} Ng4 {[%emt 0:00:08]} 60. Bf3 {[%emt 0:00:00]} Nf2 {[%emt 0:02:20] Weighted Error Value: White=0.03 (flawless) /Black=0.02 (flawless)} 1/2-1/2

[Event "1st Serbian League 2022"]
[Site "Vrnjacka Banja"]
[Date "2022.09.22"]
[Round "3.35"]
[White "Kovacevic, Aleksandar"]
[Black "Zegarac, Vuk"]
[Result "1/2-1/2"]
[ECO "B12"]
[WhiteElo "2471"]
[BlackElo "2336"]
[Annotator "TA"]
[PlyCount "92"]
[EventDate "2022.09.20"]
[EventType "team-tourn"]
[EventCountry "SRB"]
[SourceTitle "playchess.com"]
[Source "ChessBase"]
[SourceQuality "1"]
[TimeControl "40/5400+30:1800+30"]

{[%evp 9,92,16,6,18,14,7,9,9,17,8,71,63,63,67,61,53,94,74,63,75,83,39,46,45,27,20,18,18,20,21,21,21,23,0,7,17,14,12,17,58,37,-22,-14,-37,-4,-22,15,9,16,9,18,10,10,16,37,45,214,183,198,176,248,249,277,265,239,197,181,181,187,157,231,192,167,0,0,0,0,0,0,0,0,0,0,0,0]} 1. e4 {[%emt 0:00:14]} c6 {[%emt 0:00:34]} 2. d4 {[%emt 0:00:16]} d5 {[%emt 0:00:15]} 3. e5 {[%emt 0:00:32]} c5 {[%emt 0:00:20]} 4. dxc5 {[%emt 0:00:51]} e6 {[%emt 0:00:17]} 5. a3 {[%emt 0:01:38]} Bxc5 {[%emt 0:00:28]} 6. Nf3 {[%emt 0:01:50] B12: Caro-Kann: Advance Variation.} Ne7 {[%emt 0:02:36]} 7. b4 {[%emt 0:00:40]} Bb6 {[%emt 0:00:14]} 8. Bb2 {[%emt 0:01:24]} a5 {[%emt 0:01:57] 8...0-0 is more fashionable.} 9. Nbd2 {[%emt 0:01:41] [#]} Nbc6 $146 {[%emt 0:05:57]} (9... axb4 $11 {keeps the balance.} 10. axb4 Rxa1 11. Qxa1 O-O) ({Predecessor:} 9... axb4 10. axb4 Rxa1 11. Qxa1 O-O 12. Bd3 Na6 13. Qa3 Ng6 14. O-O Nf4 15. Rb1 Nxd3 16. Qxd3 {½-½ (62) Wei,Y (2733)-Lupulescu,C (2610) Moscow 2019}) 10. b5 $16 {[%emt 0:04:01]} Nb8 {[%emt 0:00:20]} 11. a4 {[%emt 0:09:19]} Nd7 {[%emt 0:02:44]} 12. g3 {[%emt 0:11:48]} Ng6 {[%emt 0:05:34]} 13. Bg2 {[%emt 0:01:30]} Qc7 {[%emt 0:03:10] Prevents c4.} 14. O-O {[%emt 0:00:59]} O-O {[%emt 0:02:34][%cal Rd7e5]} 15. c4 {[%emt 0:07:50] Threatens to win with Rc1.} (15. Ba3 $6 Bc5 $11) 15... Ndxe5 {[%emt 0:13:01]} ({Resist} 15... dxc4 16. Qe2 $16) 16. Nxe5 {[%emt 0:11:13]} Nxe5 {[%emt 0:01:10]} 17. cxd5 {[%emt 0:00:14]} exd5 {[%emt 0:09:26]} 18. Rc1 {[%emt 0:07:39]} Qd6 {[%emt 0:08:20] [#]} 19. Ne4 $1 {[%emt 0:28:37][%mdl 64] Deflection} Qd8 {[%emt 0:21:30]} 20. Bxe5 {[%emt 0:07:01]} dxe4 {[%emt 0:00:39]} 21. Qe1 {[%emt 0:00:26] Against e3} f5 {[%emt 0:10:13]} 22. Qc3 {[%emt 0:00:05]} Qe7 {[%emt 0:01:19]} 23. Rfd1 {[%emt 0:00:07][%cal Bf1d1,Bd1d4,Bd4e4][%mdl 1056] Hoping for Bd6. White has compensation.} Re8 {[%emt 0:01:24]} 24. Bd6 {[%emt 0:01:49]} Qf7 {[%emt 0:01:26]} 25. Bc5 {[%emt 0:00:01]} (25. Bc7 $14 Bxc7 26. Qxc7) 25... Bd8 $11 {[%emt 0:04:31]} 26. f3 {[%emt 0:00:23]} Bf6 {[%emt 0:00:39]} (26... Bg5 {is interesting.} 27. Be3 exf3 28. Bxg5 fxg2 29. Qc7 Qb3) 27. Bd4 {[%emt 0:00:08]} Bxd4+ {[%emt 0:01:20]} (27... Bg5 $5 {[%cal Rg5c1]} 28. Rb1 Be6 $15) 28. Rxd4 {[%emt 0:00:01][%cal Rf3e4]} (28. Qxd4 {seems wilder.} f4 29. fxe4 f3 30. Rf1) 28... Be6 {[%emt 0:00:34]} ({Much less strong is} 28... e3 29. f4 $16) 29. fxe4 {[%emt 0:00:06]} Rac8 $1 {[%emt 0:00:43]} 30. Qd2 {[%emt 0:00:06] next exf5 is good for White.} Rxc1+ {[%emt 0:01:01]} 31. Qxc1 {[%emt 0:00:02]} fxe4 {[%emt 0:00:37]} 32. Rxe4 {[%emt 0:00:16] Qe3 is the strong threat.} Rf8 $2 {[%emt 0:00:49]} ({Black should try} 32... Rd8 $14) 33. Qe3 $18 {[%emt 0:02:09] Active counter play!} ({Don't play} 33. Rf4 $6 Qe7 $16) 33... Bc8 {[%emt 0:00:38]} 34. h4 {[%emt 0:00:16]} h6 {[%emt 0:00:16]} (34... Qg6 {was worth a try.} 35. Kh2 h6) 35. Rf4 {[%emt 0:00:29]} Qe8 {[%emt 0:00:37]} 36. Bd5+ {[%emt 0:00:36]} Kh8 {[%emt 0:00:13]} 37. Qxe8 {[%emt 0:01:16]} Rxe8 {[%emt 0:00:04][%mdl 4096] Endgame KRB-KRB} 38. Kf2 {[%emt 0:00:29]} b6 {[%emt 0:00:35]} 39. Rc4 {[%emt 0:00:36]} Be6 {[%emt 0:00:53]} (39... h5 $16 {is a better defense.} 40. Bf3 g6) 40. Bxe6 {[%emt 0:00:46]} Rxe6 {[%emt 0:00:06] [#] KR-KR} 41. Rc6 $2 {[%emt 0:05:58]} ({White should play} 41. Kf3 $1 $18) 41... Re4 $1 $11 {[%emt 0:00:40] The position is equal.} 42. Rxb6 {[%emt 0:01:46]} Rxa4 {[%emt 0:00:06]} 43. Ra6 {[%emt 0:00:13]} Ra3 {[%emt 0:00:20]} 44. h5 {[%emt 0:02:10]} a4 {[%emt 0:00:51]} 45. b6 {[%emt 0:00:12] Threatening mate with b7.} Rb3 {[%emt 0:00:12]} 46. Rxa4 {[%emt 0:00:07] Black must now prevent Ra8+.} Rxb6 {[%emt 0:00:06] Black defended with fortune.  Weighted Error Value: White=0.12 (very precise) /Black=0.18 (very precise)} 1/2-1/2